[Event "*** Titled Tuesday 3|2 Blitz"]
[Site "Chess.com"]
[Date "2015.10.06"]
[Round "2"]
[White "Badouuu"]
[Black "GregShahade"]
[Result "0-1"]
[WhiteElo "1945"]
[BlackElo "2302"]
[TimeControl "180+2"]
[EndTime "11:19:08 PDT"]
[Termination "GregShahade won by resignation"]

1. e4 {[%clk 0:03:01.9]} 1... e5 {[%clk 0:02:56.8]} 2. Nf3 {[%clk 0:02:59.7]}
2... Nc6 {[%clk 0:02:57.8]} 3. Bb5 {[%clk 0:02:59.7]} 3... a6 {[%clk 0:02:58.4]}
4. Ba4 {[%clk 0:03:00.8]} 4... Nf6 {[%clk 0:02:57.9]} 5. O-O {[%clk 0:03:00.9]}
5... Be7 {[%clk 0:02:58]} 6. Re1 {[%clk 0:03:01.4]} 6... b5 {[%clk 0:02:58.8]}
7. Bb3 {[%clk 0:03:02.6]} 7... d6 {[%clk 0:03:00.3]} 8. c3 {[%clk 0:03:04]} 8...
O-O {[%clk 0:03:01.8]} 9. h3 {[%clk 0:03:05.2]} 9... Na5 {[%clk 0:03:02.2]} 10.
Bc2 {[%clk 0:03:06.4]} 10... c5 {[%clk 0:03:02.7]} 11. d3 {[%clk 0:03:08]} 11...
Qc7 {[%clk 0:02:58.1]} 12. Nbd2 {[%clk 0:03:08.3]} 12... Re8 {[%clk 0:02:55]}
13. Nf1 {[%clk 0:02:58.6]} 13... h6 {[%clk 0:02:55]} 14. Ng3 {[%clk 0:02:55.5]}
14... Bf8 {[%clk 0:02:54.5]} 15. Nh4 {[%clk 0:02:52.7]} 15... g6 {[%clk
0:02:48.3]} 16. Be3 {[%clk 0:02:52.2]} 16... Bg7 {[%clk 0:02:45.2]} 17. Qd2
{[%clk 0:02:53.1]} 17... Kh7 {[%clk 0:02:45]} 18. a4 {[%clk 0:02:51]} 18... Be6
{[%clk 0:02:28.8]} 19. axb5 {[%clk 0:02:51.4]} 19... axb5 {[%clk 0:02:30.6]} 20.
Qe2 {[%clk 0:02:40.9]} 20... Nc6 {[%clk 0:02:20.8]} 21. f4 {[%clk 0:02:38.5]}
21... exf4 {[%clk 0:02:16]} 22. Bxf4 {[%clk 0:02:40.4]} 22... Qe7 {[%clk
0:01:39.8]} 23. Nf3 {[%clk 0:02:32.9]} 23... Rxa1 {[%clk 0:01:39.1]} 24. Rxa1
{[%clk 0:02:31.6]} 24... d5 {[%clk 0:01:40.2]} 25. exd5 {[%clk 0:02:26.2]} 25...
Nxd5 {[%clk 0:01:36.9]} 26. Bd2 {[%clk 0:02:24.8]} 26... b4 {[%clk 0:01:34.8]}
27. Ra6 {[%clk 0:02:05.4]} 27... Qb7 {[%clk 0:01:26.5]} 28. Ra4 {[%clk
0:01:48.1]} 28... bxc3 {[%clk 0:01:24.5]} 29. bxc3 {[%clk 0:01:49.4]} 29... Qb2
{[%clk 0:01:13.3]} 30. Be1 {[%clk 0:01:35.4]} 30... Bxc3 {[%clk 0:01:10.8]} 31.
d4 {[%clk 0:01:19.5]} 31... Nxd4 {[%clk 0:00:58.6]} 32. Nxd4 {[%clk 0:01:18.9]}
32... Bxd4+ {[%clk 0:00:59.3]} 33. Kh1 {[%clk 0:01:15.8]} 33... Bd7 {[%clk
0:00:54.2]} 34. Ra7 {[%clk 0:01:14.1]} 34... Rxe2 {[%clk 0:00:49.9]} 0-1

[Event "*** Titled Tuesday 3|2 Blitz"]
[Site "Chess.com"]
[Date "2015.10.06"]
[Round "2"]
[White "gumersindo"]
[Black "AndreyOstrovskiy"]
[Result "0-1"]
[WhiteElo "2150"]
[BlackElo "2379"]
[TimeControl "180+2"]
[EndTime "11:19:25 PDT"]
[Termination "AndreyOstrovskiy won by resignation"]

1. d4 {[%clk 0:03:01.9]} 1... Nf6 {[%clk 0:03:00.6]} 2. c4 {[%clk 0:03:02.3]}
2... e6 {[%clk 0:03:01.5]} 3. Nc3 {[%clk 0:03:02.6]} 3... Bb4 {[%clk 0:03:01.8]}
4. Qc2 {[%clk 0:03:03.7]} 4... O-O {[%clk 0:03:02.5]} 5. a3 {[%clk 0:03:04.4]}
5... Bxc3+ {[%clk 0:03:03.1]} 6. Qxc3 {[%clk 0:03:06]} 6... d6 {[%clk
0:03:04.7]} 7. Bg5 {[%clk 0:03:03.5]} 7... Nbd7 {[%clk 0:03:05.8]} 8. e3 {[%clk
0:03:04.2]} 8... Re8 {[%clk 0:03:06.8]} 9. Ne2 {[%clk 0:02:59.7]} 9... e5 {[%clk
0:03:06.3]} 10. d5 {[%clk 0:02:57.9]} 10... a5 {[%clk 0:03:06.4]} 11. Qc2 {[%clk
0:02:56.8]} 11... a4 {[%clk 0:03:06.7]} 12. Nc3 {[%clk 0:02:57.4]} 12... h6
{[%clk 0:03:07.1]} 13. Bxf6 {[%clk 0:02:56.3]} 13... Qxf6 {[%clk 0:03:04.7]} 14.
Nxa4 {[%clk 0:02:56]} 14... e4 {[%clk 0:03:05.3]} 15. Nc3 {[%clk 0:02:54.7]}
15... Qg6 {[%clk 0:03:05.9]} 16. O-O-O {[%clk 0:02:45.1]} 16... Nc5 {[%clk
0:03:02.3]} 17. Nb5 {[%clk 0:02:34.1]} 17... Re7 {[%clk 0:03:02.9]} 18. h4
{[%clk 0:02:26.1]} 18... h5 {[%clk 0:02:50.2]} 19. Kb1 {[%clk 0:02:20.5]} 19...
Bd7 {[%clk 0:02:45.2]} 20. Nc3 {[%clk 0:02:13.1]} 20... Ree8 {[%clk 0:02:34]}
21. Rd4 {[%clk 0:02:10.1]} 21... f5 {[%clk 0:02:11.2]} 22. g3 {[%clk 0:02:01.8]}
22... Qf6 {[%clk 0:02:08.2]} 23. Be2 {[%clk 0:02:01]} 23... g6 {[%clk
0:02:09.4]} 24. Rhd1 {[%clk 0:01:53]} 24... Ra7 {[%clk 0:02:10.2]} 25. Nb5
{[%clk 0:01:50.2]} 25... Bxb5 {[%clk 0:02:10.1]} 26. cxb5 {[%clk 0:01:50.6]}
26... Rea8 {[%clk 0:02:08.2]} 27. Rb4 {[%clk 0:01:43.7]} 27... b6 {[%clk
0:02:07.6]} 28. Rc1 {[%clk 0:01:39.4]} 28... Qe5 {[%clk 0:02:07.5]} 29. Rd1
{[%clk 0:01:38.6]} 29... Ra4 {[%clk 0:01:57.9]} 30. Rxa4 {[%clk 0:01:37.6]}
30... Rxa4 {[%clk 0:01:59]} 31. Bc4 {[%clk 0:01:36.5]} 31... Kf8 {[%clk
0:01:54.6]} 32. Rd4 {[%clk 0:01:31.8]} 32... Ra7 {[%clk 0:01:52.2]} 33. Rd1
{[%clk 0:01:22.2]} 33... Ke7 {[%clk 0:01:52.8]} 34. Rd2 {[%clk 0:01:20.2]} 34...
Kd8 {[%clk 0:01:53.2]} 35. Ka2 {[%clk 0:01:18.9]} 35... Kc8 {[%clk 0:01:53]} 36.
Qc3 {[%clk 0:01:19.9]} 36... Qxc3 {[%clk 0:01:52]} 37. bxc3 {[%clk 0:01:20.4]}
37... Kd8 {[%clk 0:01:50.5]} 38. Bb3 {[%clk 0:01:16.3]} 38... Ke7 {[%clk
0:01:51.4]} 39. c4 {[%clk 0:01:11.9]} 39... Kf6 {[%clk 0:01:52.6]} 40. Bc2
{[%clk 0:01:12.1]} 40... Ra8 {[%clk 0:01:52.4]} 41. Kb2 {[%clk 0:01:12.3]} 41...
g5 {[%clk 0:01:52.6]} 42. hxg5+ {[%clk 0:01:12.6]} 42... Kxg5 {[%clk 0:01:53.9]}
43. Rd1 {[%clk 0:01:14.1]} 43... Rh8 {[%clk 0:01:49.4]} 44. Rh1 {[%clk
0:01:14.5]} 44... Nd7 {[%clk 0:01:49.9]} 45. Bd1 {[%clk 0:01:14]} 45... Ne5
{[%clk 0:01:50.3]} 46. Kc3 {[%clk 0:01:14.6]} 46... h4 {[%clk 0:01:46.4]} 47.
gxh4+ {[%clk 0:01:13.8]} 47... Rxh4 {[%clk 0:01:48]} 48. Rxh4 {[%clk 0:01:13.7]}
48... Kxh4 {[%clk 0:01:49.3]} 49. Kd2 {[%clk 0:01:11.6]} 49... Nxc4+ {[%clk
0:01:49.1]} 0-1

[Event "*** Titled Tuesday 3|2 Blitz"]
[Site "Chess.com"]
[Date "2015.10.06"]
[Round "2"]
[White "1stSecond"]
[Black "jbj"]
[Result "1-0"]
[WhiteElo "2398"]
[BlackElo "2277"]
[TimeControl "180+2"]
[EndTime "11:19:34 PDT"]
[Termination "1stSecond won by resignation"]

1. d4 {[%clk 0:03:01.9]} 1... Nf6 {[%clk 0:03:00.6]} 2. c4 {[%clk 0:03:03.5]}
2... e6 {[%clk 0:03:01.5]} 3. Nc3 {[%clk 0:03:04.9]} 3... Bb4 {[%clk 0:03:02.1]}
4. e3 {[%clk 0:03:06.2]} 4... b6 {[%clk 0:03:02.9]} 5. Ne2 {[%clk 0:03:05.6]}
5... Bb7 {[%clk 0:03:02.8]} 6. a3 {[%clk 0:03:06.9]} 6... Be7 {[%clk 0:03:00.3]}
7. Ng3 {[%clk 0:03:07.6]} 7... d5 {[%clk 0:02:58.9]} 8. cxd5 {[%clk 0:03:07]}
8... Nxd5 {[%clk 0:02:54.7]} 9. Bb5+ {[%clk 0:02:59.6]} 9... c6 {[%clk
0:02:31.4]} 10. Be2 {[%clk 0:02:59.8]} 10... Nxc3 {[%clk 0:02:31]} 11. bxc3
{[%clk 0:03:01.7]} 11... c5 {[%clk 0:02:30.3]} 12. O-O {[%clk 0:03:02]} 12...
O-O {[%clk 0:02:30.9]} 13. a4 {[%clk 0:02:58]} 13... Nc6 {[%clk 0:02:25.3]} 14.
Ba3 {[%clk 0:02:52.9]} 14... cxd4 {[%clk 0:02:24.8]} 15. Bxe7 {[%clk 0:02:52.2]}
15... Qxe7 {[%clk 0:02:26.7]} 16. cxd4 {[%clk 0:02:53.1]} 16... Rfd8 {[%clk
0:02:25.5]} 17. Qb1 {[%clk 0:02:45.4]} 17... g6 {[%clk 0:02:22.4]} 18. Rc1
{[%clk 0:02:44.5]} 18... Rac8 {[%clk 0:02:21.8]} 19. Bf3 {[%clk 0:02:35.8]}
19... Na5 {[%clk 0:02:12.4]} 20. Qb5 {[%clk 0:02:20.8]} 20... Bxf3 {[%clk
0:02:09.9]} 21. gxf3 {[%clk 0:02:21.7]} 21... f5 {[%clk 0:02:05.5]} 22. Ne2
{[%clk 0:02:00.4]} 22... Qb7 {[%clk 0:02:03.5]} 23. Kg2 {[%clk 0:01:59.7]} 23...
Kf7 {[%clk 0:01:56.1]} 24. Nf4 {[%clk 0:02:00.4]} 24... a6 {[%clk 0:01:51.4]}
25. Qb2 {[%clk 0:01:49.2]} 25... Rxc1 {[%clk 0:01:51.1]} 26. Rxc1 {[%clk
0:01:49.2]} 26... g5 {[%clk 0:01:37.5]} 27. Nd3 {[%clk 0:01:49.5]} 27... g4
{[%clk 0:01:18.9]} 28. Ne5+ {[%clk 0:01:50.1]} 28... Ke8 {[%clk 0:01:13.4]} 29.
Qb4 {[%clk 0:01:31.6]} 29... gxf3+ {[%clk 0:01:11.2]} 30. Kh1 {[%clk 0:01:32.1]}
30... Rc8 {[%clk 0:01:04.7]} 31. Rg1 {[%clk 0:01:32.3]} 31... Qg7 {[%clk
0:00:08.5]} 32. Rxg7 {[%clk 0:01:28.8]} 32... Rc1+ {[%clk 0:00:08.5]} 33. Rg1
{[%clk 0:01:29]} 1-0

[Event "*** Titled Tuesday 3|2 Blitz"]
[Site "Chess.com"]
[Date "2015.10.06"]
[Round "2"]
[White "zmaj23"]
[Black "alexsuper1987"]
[Result "1-0"]
[WhiteElo "2316"]
[BlackElo "2203"]
[TimeControl "180+2"]
[EndTime "11:19:38 PDT"]
[Termination "zmaj23 won by resignation"]

1. e4 {[%clk 0:02:55]} 1... c5 {[%clk 0:03:00.6]} 2. Nf3 {[%clk 0:02:54.7]} 2...
e6 {[%clk 0:03:01.9]} 3. d4 {[%clk 0:02:56.1]} 3... cxd4 {[%clk 0:03:03.8]} 4.
Nxd4 {[%clk 0:02:58]} 4... Nf6 {[%clk 0:03:05.2]} 5. Nc3 {[%clk 0:02:59.1]} 5...
Nc6 {[%clk 0:03:06.2]} 6. a3 {[%clk 0:02:59.1]} 6... Qc7 {[%clk 0:03:04.1]} 7.
g3 {[%clk 0:02:58.5]} 7... a6 {[%clk 0:02:49.2]} 8. Bg2 {[%clk 0:02:58.8]} 8...
Nxd4 {[%clk 0:02:43.2]} 9. Qxd4 {[%clk 0:02:54.6]} 9... Bc5 {[%clk 0:02:44.7]}
10. Qd3 {[%clk 0:02:53.6]} 10... O-O {[%clk 0:02:34.6]} 11. O-O {[%clk
0:02:50.7]} 11... d6 {[%clk 0:02:09.3]} 12. b4 {[%clk 0:02:46.9]} 12... Ba7
{[%clk 0:02:08.8]} 13. Bb2 {[%clk 0:02:48]} 13... Rd8 {[%clk 0:02:00.6]} 14. Ne2
{[%clk 0:02:48.3]} 14... Bd7 {[%clk 0:01:59.8]} 15. Bxf6 {[%clk 0:02:39]} 15...
gxf6 {[%clk 0:02:01.7]} 16. Nf4 {[%clk 0:02:40.6]} 16... Bb5 {[%clk 0:01:58.4]}
17. c4 {[%clk 0:02:01.6]} 17... Qxc4 {[%clk 0:01:53.3]} 18. Qf3 {[%clk 0:02:00]}
18... Qd4 {[%clk 0:00:58.6]} 19. Rfd1 {[%clk 0:01:52.2]} 19... Qe5 {[%clk
0:00:50.7]} 20. Nh5 {[%clk 0:01:44.6]} 20... f5 {[%clk 0:00:51.7]} 21. Rac1
{[%clk 0:01:37.2]} 21... fxe4 {[%clk 0:00:40.7]} 22. Nf6+ {[%clk 0:01:32.2]}
22... Kh8 {[%clk 0:00:38.5]} 23. Nxe4 {[%clk 0:01:31.5]} 23... f5 {[%clk
0:00:34.1]} 24. Ng5 {[%clk 0:01:28.3]} 24... Rd7 {[%clk 0:00:22.6]} 25. Qh5
{[%clk 0:01:24.3]} 25... Be2 {[%clk 0:00:17.9]} 26. Nf7+ {[%clk 0:01:21.4]}
26... Kg7 {[%clk 0:00:17.8]} 27. Nxe5 {[%clk 0:01:18]} 27... Bxh5 {[%clk
0:00:17.6]} 28. Nxd7 {[%clk 0:01:19.2]} 28... Bxd1 {[%clk 0:00:18.7]} 29. Rxd1
{[%clk 0:01:21.1]} 29... Rd8 {[%clk 0:00:13.1]} 30. Rxd6 {[%clk 0:01:21.4]}
30... Bb8 {[%clk 0:00:12.8]} 31. Rd1 {[%clk 0:01:18.6]} 31... Bc7 {[%clk
0:00:11.4]} 32. Bxb7 {[%clk 0:01:19]} 32... a5 {[%clk 0:00:12.3]} 33. b5 {[%clk
0:01:19.3]} 1-0

[Event "*** Titled Tuesday 3|2 Blitz"]
[Site "Chess.com"]
[Date "2015.10.06"]
[Round "2"]
[White "FairChess_on_YouTube"]
[Black "facu57"]
[Result "1/2-1/2"]
[WhiteElo "2705"]
[BlackElo "2490"]
[TimeControl "180+2"]
[EndTime "11:20:28 PDT"]
[Termination "Game drawn by repetition"]

1. e4 {[%clk 0:03:01.9]} 1... e5 {[%clk 0:03:00.4]} 2. Nf3 {[%clk 0:03:01.2]}
2... Nc6 {[%clk 0:03:02.3]} 3. d4 {[%clk 0:03:02.3]} 3... exd4 {[%clk 0:03:03]}
4. Nxd4 {[%clk 0:03:02.7]} 4... Bc5 {[%clk 0:03:01.9]} 5. Nxc6 {[%clk
0:03:01.8]} 5... dxc6 {[%clk 0:03:02]} 6. Qxd8+ {[%clk 0:03:01.7]} 6... Kxd8
{[%clk 0:03:03.4]} 7. Bc4 {[%clk 0:02:55.5]} 7... Nf6 {[%clk 0:03:02.9]} 8. f3
{[%clk 0:02:52.7]} 8... Be6 {[%clk 0:03:02.2]} 9. Bxe6 {[%clk 0:02:50.7]} 9...
fxe6 {[%clk 0:03:02.5]} 10. Ke2 {[%clk 0:02:50.4]} 10... Ke7 {[%clk 0:03:02.4]}
11. Nd2 {[%clk 0:02:46.6]} 11... e5 {[%clk 0:03:02.6]} 12. Nb3 {[%clk
0:02:45.7]} 12... Bd6 {[%clk 0:03:01.8]} 13. Na5 {[%clk 0:02:44.7]} 13... b6
{[%clk 0:02:57.1]} 14. Nc4 {[%clk 0:02:41.9]} 14... h6 {[%clk 0:02:57.4]} 15.
Be3 {[%clk 0:02:38.7]} 15... Ke6 {[%clk 0:02:57.8]} 16. a4 {[%clk 0:02:35.7]}
16... a5 {[%clk 0:02:58.1]} 17. Rhd1 {[%clk 0:02:32.9]} 17... Rad8 {[%clk
0:02:57.5]} 18. Bf2 {[%clk 0:02:14.5]} 18... g6 {[%clk 0:02:56.6]} 19. Bh4
{[%clk 0:02:12.9]} 19... Be7 {[%clk 0:02:56.8]} 20. Bg3 {[%clk 0:02:13.9]} 20...
Bd6 {[%clk 0:02:48.7]} 21. Rd3 {[%clk 0:02:13.3]} 21... Nh5 {[%clk 0:02:48.7]}
22. Rad1 {[%clk 0:02:12.3]} 22... Nxg3+ {[%clk 0:02:49.3]} 23. hxg3 {[%clk
0:02:13.9]} 23... Be7 {[%clk 0:02:48.3]} 24. f4 {[%clk 0:02:14.4]} 24... Rxd3
{[%clk 0:02:37.7]} 25. Rxd3 {[%clk 0:02:12.1]} 25... Bf6 {[%clk 0:02:39.6]} 26.
Kf3 {[%clk 0:02:03.2]} 26... h5 {[%clk 0:02:39.1]} 27. fxe5 {[%clk 0:01:57]}
27... Bxe5 {[%clk 0:02:39.4]} 28. Nxe5 {[%clk 0:01:57.8]} 28... Kxe5 {[%clk
0:02:40.2]} 29. Rd7 {[%clk 0:01:59.4]} 29... Rf8+ {[%clk 0:02:34.8]} 30. Ke3
{[%clk 0:02:00.1]} 30... Rf1 {[%clk 0:02:27.6]} 31. Rxc7 {[%clk 0:01:57.7]}
31... Re1+ {[%clk 0:02:28.7]} 32. Kf2 {[%clk 0:01:56.1]} 32... Rb1 {[%clk
0:02:26.2]} 33. Rxc6 {[%clk 0:01:56.7]} 33... Rxb2 {[%clk 0:02:25.9]} 34. Ke3
{[%clk 0:01:25.8]} 34... Rb4 {[%clk 0:02:05.5]} 35. Rxg6 {[%clk 0:01:24.5]}
35... Rxe4+ {[%clk 0:02:06]} 36. Kd3 {[%clk 0:01:20.4]} 36... Rxa4 {[%clk
0:02:07.9]} 37. Rxb6 {[%clk 0:01:19]} 37... Rg4 {[%clk 0:01:47.7]} 38. Rb5+
{[%clk 0:01:01.3]} 38... Kd6 {[%clk 0:01:48.2]} 39. Rxh5 {[%clk 0:00:41.7]}
39... Rxg3+ {[%clk 0:01:49.3]} 40. Kc4 {[%clk 0:00:42]} 40... Rxg2 {[%clk
0:01:48.2]} 41. c3 {[%clk 0:00:43.4]} 41... a4 {[%clk 0:01:45.3]} 42. Rh6+
{[%clk 0:00:39.9]} 42... Kc7 {[%clk 0:01:44.9]} 43. Kb5 {[%clk 0:00:38.1]} 43...
a3 {[%clk 0:01:42.7]} 44. Ra6 {[%clk 0:00:38.1]} 44... a2 {[%clk 0:01:38.8]} 45.
c4 {[%clk 0:00:36.1]} 45... Kb7 {[%clk 0:01:39.3]} 46. Ra3 {[%clk 0:00:34.2]}
46... Rb2+ {[%clk 0:01:38.5]} 47. Kc5 {[%clk 0:00:35.2]} 47... Rh2 {[%clk
0:01:40.1]} 48. Rb3+ {[%clk 0:00:34.9]} 48... Kc7 {[%clk 0:01:40.8]} 49. Ra3
{[%clk 0:00:36.3]} 49... Kb7 {[%clk 0:01:42.2]} 50. Kb4 {[%clk 0:00:36.3]} 50...
Kb6 {[%clk 0:01:41.6]} 51. c5+ {[%clk 0:00:37]} 51... Kc6 {[%clk 0:01:43]} 52.
Ra6+ {[%clk 0:00:36.5]} 52... Kb7 {[%clk 0:01:44.4]} 53. Ra3 {[%clk 0:00:35.5]}
53... Kc6 {[%clk 0:01:45.5]} 54. Ra6+ {[%clk 0:00:36.1]} 54... Kb7 {[%clk
0:01:46.9]} 55. Ra3 {[%clk 0:00:34.9]} 55... Kc6 {[%clk 0:01:48]} 56. Ra6+
{[%clk 0:00:36]} 1/2-1/2

[Event "*** Titled Tuesday 3|2 Blitz"]
[Site "Chess.com"]
[Date "2015.10.06"]
[Round "2"]
[White "kleinebeer98"]
[Black "Viaje"]
[Result "1-0"]
[WhiteElo "2286"]
[BlackElo "2147"]
[TimeControl "180+2"]
[EndTime "11:20:43 PDT"]
[Termination "kleinebeer98 won by resignation"]

1. e4 {[%clk 0:03:01.9]} 1... c5 {[%clk 0:03:01]} 2. Nf3 {[%clk 0:02:59.9]} 2...
d6 {[%clk 0:03:02.6]} 3. d4 {[%clk 0:03:00.2]} 3... cxd4 {[%clk 0:03:04.5]} 4.
Nxd4 {[%clk 0:03:02.1]} 4... Nf6 {[%clk 0:03:06.1]} 5. Nc3 {[%clk 0:03:03.3]}
5... a6 {[%clk 0:03:07.7]} 6. g3 {[%clk 0:02:56.1]} 6... e5 {[%clk 0:03:08.1]}
7. Nb3 {[%clk 0:02:55.4]} 7... Be7 {[%clk 0:03:09.6]} 8. Bg2 {[%clk 0:02:56.5]}
8... b5 {[%clk 0:03:09.7]} 9. a4 {[%clk 0:02:55.4]} 9... b4 {[%clk 0:03:10]} 10.
Nd5 {[%clk 0:02:56.6]} 10... Nxd5 {[%clk 0:03:11.4]} 11. Qxd5 {[%clk 0:02:56.1]}
11... Ra7 {[%clk 0:03:13]} 12. Be3 {[%clk 0:02:52.9]} 12... Be6 {[%clk
0:03:14.4]} 13. Qd2 {[%clk 0:02:49.2]} 13... Rb7 {[%clk 0:03:15.9]} 14. a5
{[%clk 0:02:46.4]} 14... Nd7 {[%clk 0:03:16]} 15. O-O {[%clk 0:02:44.5]} 15...
O-O {[%clk 0:03:14.7]} 16. Rfd1 {[%clk 0:02:28.9]} 16... Qc8 {[%clk 0:02:58.1]}
17. Ra4 {[%clk 0:02:13.3]} 17... Qc6 {[%clk 0:02:37.8]} 18. Rxb4 {[%clk
0:02:12.1]} 18... Rxb4 {[%clk 0:02:39.5]} 19. Qxb4 {[%clk 0:02:14]} 19... Qxc2
{[%clk 0:02:40.5]} 20. Rc1 {[%clk 0:01:47.6]} 20... Qxb3 {[%clk 0:02:40.8]} 21.
Qxb3 {[%clk 0:01:48.6]} 21... Bxb3 {[%clk 0:02:41.7]} 22. Rc7 {[%clk 0:01:50.5]}
22... Be6 {[%clk 0:02:27.6]} 23. f4 {[%clk 0:01:51.8]} 23... exf4 {[%clk
0:02:10]} 24. gxf4 {[%clk 0:01:53.7]} 24... Bd8 {[%clk 0:02:01.7]} 25. Ra7
{[%clk 0:01:51.9]} 25... Nb8 {[%clk 0:01:26.7]} 26. Bb6 {[%clk 0:01:34.1]} 26...
Bxb6+ {[%clk 0:01:25.3]} 27. axb6 {[%clk 0:01:36]} 27... Bc4 {[%clk 0:01:24.2]}
28. Rc7 {[%clk 0:01:29.1]} 28... Bb5 {[%clk 0:01:22.8]} 29. e5 {[%clk
0:01:25.3]} 29... dxe5 {[%clk 0:01:21.8]} 30. fxe5 {[%clk 0:01:27.2]} 30... f6
{[%clk 0:01:14.5]} 31. e6 {[%clk 0:01:09.8]} 31... Re8 {[%clk 0:01:06.6]} 32. b7
{[%clk 0:00:54]} 32... g6 {[%clk 0:01:00.2]} 33. b4 {[%clk 0:00:47.2]} 33... Kh8
{[%clk 0:00:57.2]} 34. Bd5 {[%clk 0:00:45.3]} 34... f5 {[%clk 0:00:36]} 35. Kf2
{[%clk 0:00:44.6]} 35... a5 {[%clk 0:00:33.2]} 36. bxa5 {[%clk 0:00:44.5]} 36...
Na6 {[%clk 0:00:34.8]} 37. Rc8 {[%clk 0:00:44.2]} 37... Kg7 {[%clk 0:00:32]} 38.
Bc4 {[%clk 0:00:42.1]} 38... Re7 {[%clk 0:00:12.2]} 39. Bxb5 {[%clk 0:00:39.3]}
39... Rxb7 {[%clk 0:00:13.8]} 40. Bxa6 {[%clk 0:00:40.1]} 40... Rb2+ {[%clk
0:00:15.7]} 41. Kg3 {[%clk 0:00:40]} 41... Rxh2 {[%clk 0:00:17.6]} 42. Kxh2
{[%clk 0:00:41]} 1-0

[Event "*** Titled Tuesday 3|2 Blitz"]
[Site "Chess.com"]
[Date "2015.10.06"]
[Round "2"]
[White "StellarChessPro"]
[Black "IMRosen"]
[Result "0-1"]
[WhiteElo "2225"]
[BlackElo "2206"]
[TimeControl "180+2"]
[EndTime "11:20:43 PDT"]
[Termination "IMRosen won by resignation"]

1. d4 {[%clk 0:03:01.9]} 1... Nf6 {[%clk 0:02:59.4]} 2. Bg5 {[%clk 0:03:02.5]}
2... Ne4 {[%clk 0:02:59.5]} 3. Bf4 {[%clk 0:03:03.6]} 3... d6 {[%clk 0:03:01.1]}
4. f3 {[%clk 0:03:04.7]} 4... Nf6 {[%clk 0:03:02.8]} 5. e4 {[%clk 0:03:05.9]}
5... Nbd7 {[%clk 0:03:04.5]} 6. Bc4 {[%clk 0:03:05.6]} 6... e5 {[%clk
0:03:06.1]} 7. dxe5 {[%clk 0:03:02.5]} 7... dxe5 {[%clk 0:03:08]} 8. Be3 {[%clk
0:03:03.3]} 8... Be7 {[%clk 0:03:01.7]} 9. Nc3 {[%clk 0:03:04.2]} 9... c6 {[%clk
0:03:02.7]} 10. Nge2 {[%clk 0:03:05]} 10... O-O {[%clk 0:03:01.9]} 11. Qd2
{[%clk 0:03:05.8]} 11... b5 {[%clk 0:02:55]} 12. Bb3 {[%clk 0:03:06.7]} 12... a5
{[%clk 0:02:52.7]} 13. a3 {[%clk 0:03:07.4]} 13... Qc7 {[%clk 0:02:45.3]} 14.
O-O {[%clk 0:03:08]} 14... Nb6 {[%clk 0:02:37.1]} 15. Rfd1 {[%clk 0:03:06.5]}
15... Be6 {[%clk 0:02:33.3]} 16. Qe1 {[%clk 0:03:06.9]} 16... Nc4 {[%clk
0:02:26.5]} 17. Bxc4 {[%clk 0:03:07.4]} 17... Bxc4 {[%clk 0:02:28.4]} 18. Qf2
{[%clk 0:03:06.7]} 18... Qb7 {[%clk 0:02:12.4]} 19. b3 {[%clk 0:03:01]} 19...
Be6 {[%clk 0:02:12.8]} 20. Bc5 {[%clk 0:03:01.4]} 20... Rfe8 {[%clk 0:02:12.5]}
21. Bxe7 {[%clk 0:03:02]} 21... Qxe7 {[%clk 0:02:14.4]} 22. Qb6 {[%clk
0:02:57.2]} 22... Qa7 {[%clk 0:02:14.5]} 23. Qxa7 {[%clk 0:02:57.7]} 23... Rxa7
{[%clk 0:02:16.4]} 24. Rd6 {[%clk 0:02:58.5]} 24... Rc7 {[%clk 0:02:14.2]} 25.
Rad1 {[%clk 0:02:58.4]} 25... Kf8 {[%clk 0:02:15.8]} 26. Kf2 {[%clk 0:02:59.4]}
26... Ke7 {[%clk 0:02:17.3]} 27. R6d2 {[%clk 0:02:57.5]} 27... h6 {[%clk
0:02:13.2]} 28. g4 {[%clk 0:02:57.1]} 28... Rb8 {[%clk 0:02:10.4]} 29. h4 {[%clk
0:02:56.6]} 29... Nd7 {[%clk 0:02:09.3]} 30. Ke3 {[%clk 0:02:54.8]} 30... b4
{[%clk 0:02:07.1]} 31. axb4 {[%clk 0:02:55.3]} 31... axb4 {[%clk 0:02:09]} 32.
Na4 {[%clk 0:02:55.4]} 32... Rb5 {[%clk 0:02:09.7]} 33. g5 {[%clk 0:02:51.3]}
33... h5 {[%clk 0:02:05.7]} 34. f4 {[%clk 0:02:47.9]} 34... g6 {[%clk
0:01:57.9]} 35. Rc1 {[%clk 0:02:34.5]} 35... exf4+ {[%clk 0:01:52.2]} 36. Nxf4
{[%clk 0:02:35.3]} 36... Ne5 {[%clk 0:01:49.5]} 37. Nd3 {[%clk 0:02:28.6]} 37...
Ng4+ {[%clk 0:01:49.8]} 38. Kf4 {[%clk 0:02:29.1]} 38... c5 {[%clk 0:01:49.9]}
39. Ndb2 {[%clk 0:02:23.1]} 39... c4 {[%clk 0:01:42.6]} 40. bxc4 {[%clk
0:02:21.5]} 40... Bxc4 {[%clk 0:01:44.5]} 41. Nxc4 {[%clk 0:02:07.3]} 41... Rxc4
{[%clk 0:01:46.4]} 42. Nb2 {[%clk 0:02:08.9]} 42... Rf5+ {[%clk 0:01:44.8]} 43.
Kg3 {[%clk 0:02:06.3]} 43... Rxe4 {[%clk 0:01:43]} 44. Rd3 {[%clk 0:02:03.1]}
44... Nf2 {[%clk 0:01:37.1]} 45. Rf3 {[%clk 0:02:01.7]} 45... Ng4 {[%clk
0:01:23.2]} 46. Rxf5 {[%clk 0:02:00.5]} 46... gxf5 {[%clk 0:01:25.1]} 47. Nd3
{[%clk 0:02:01.7]} 47... b3 {[%clk 0:01:20.1]} 48. cxb3 {[%clk 0:01:44.7]} 48...
Re3+ {[%clk 0:01:14.9]} 49. Kf4 {[%clk 0:01:46.6]} 49... Rxd3 {[%clk 0:01:16.8]}
50. Rb1 {[%clk 0:01:38.5]} 50... Ke6 {[%clk 0:01:13.8]} 51. Re1+ {[%clk
0:01:34.2]} 51... Kd5 {[%clk 0:01:14.9]} 52. Re7 {[%clk 0:01:31.8]} 52... Rxb3
{[%clk 0:00:56.7]} 53. g6 {[%clk 0:01:18]} 53... fxg6 {[%clk 0:00:54.1]} 54. Kg5
{[%clk 0:01:19.3]} 54... Ne5 {[%clk 0:00:52]} 55. Kf6 {[%clk 0:01:15.5]} 55...
Re3 {[%clk 0:00:49.2]} 56. Ra7 {[%clk 0:01:16.2]} 56... f4 {[%clk 0:00:47]} 0-1